Workbook

Sheet Grants
B1: Actuals
A2: Organization | B2: 1995 | C2: 1996 | D2: 1997 | E2: 1998 | F2: 1999 | G2: 2002 | H2: 2003 | I2: 2004 | J2: 2005 | K2: 2006 | L2: 2007 | M2: 2008 | N2: 2009 | O2: 2010 | P2: 2011 | Q2: 2012 | R2: Projected 2013
A3: Canadian Association of Chiefs of Police | J3: 5000
A4: Canadian Association of Police Boards - Conference Sponsorship | C4: 1500 | G4: 5000 | J4: 12000 | L4: 1000 | M4: 1000 | N4: 1000 | O4: =300+1000 -> 1300 | P4: 1000 | Q4: 1000 | R4: 1000
A5: Cdn. Police Curling Championships | H5: 500
A6: Coalition for Gun Control | B6: 10000
A7: Citizen Advocacy | P7: 875
A8: Council on Aging Luncheon | N8: 225 | O8: =261.9+200 -> 461.9
A9: Crime Stoppers | B9: 1000 | C9: 1000 | D9: 1000 | E9: 1000 | H9: 600 | J9: =250+100 -> 350 | K9: =500+100 -> 600 | L9: 100 | M9: 100 | N9: =100+1000 -> 1100 | O9: 100 | P9: =150+125 -> 275 | Q9: =1100+125+150 -> 1375 | R9: 1500
A10: Criminal Investigative Best Practices Symposium - Sponsorship | F10: 500
A11: Elizabeth Fry Society | B11: 1500 | C11: 1500 | D11: 1000 | E11: 1500 | F11: 1500 | G11: 1000 | H11: 1000 | I11: 1000 | J11: 500./Rtd | K11: 1000 | L11: 1000 | M11: 1000
A12: Fête Caribe | B12: 5000
A13: Friends of L. Hill (retirement party) | L13: 500
A14: Guyana Ottawa Association | N14: 180
A15: Heart & Stroke Foundation (Cst. Murphy) | I15: 200 | J15: 200 | K15: 200
A16: International Peace Officers Memorial Parade | C16: 2000 | D16: 2000
A17: Kids Come 1st Golf Tournament (Hole) | Q17: 250
A18: National Capital Alliance on Race Relations - Youth Mentoring Program | C18: 120 | D18: 120
A19: Ont Assoc of Police Services Boards | H19: 3000 | J19: 1000 | K19: 1000 | L19: 1000 | M19: 1000 | N19: 1000 | O19: 1000 | P19: 2500 | Q19: 5000 | R19: 1000
A20: Ottawa Centre for Crime Prevention
A21: Ottawa Celtic Music & Dance Society (OPS Pipe Band) for B&G Club | P21: 60
A22: Ottawa Police Association (Big 10 Conf) | O22: 250
A23: Ottawa Police Service FOI Conference | N23: 300
A24: Ottawa Police Dragon Boat | K24: 1000 | L24: 700 | M24: 700 | N24: 1000 | Q24: 500
A25: Ottawa Police Pipes & Drums Band | D25: 500 | E25: 500 | F25: 500 | G25: 500 | H25: 500 | I25: 500
A26: Ottawa Police Gala | O26: 1250 | P26: =1250+500 -> 1750 | Q26: 1500 | R26: 1500
A27: Ottawa Police Women's Soccer Team | N27: 1000
A28: Ottawa Boys & Girls Club | C28: 800 | D28: 800 | E28: 1200 | G28: 1000 | H28: 1000 | I28: 1200 | J28: 1200 | K28: 1400 | L28: =2500+1500+595+700 -> 5295 | M28: 700 | N28: 700 | O28: 800 | P28: 800 | Q28: =1500 -> 1500 | R28: =1500 -> 1500
A29: Ottawa Street Ambassador Program 2004 - Byward Market Business | D29: 10000 | E29: 10000 | F29: 10000 | G29: 10000 | H29: 10000 | I29: 10000 | J29: 10000 | K29: 10000 | L29: 10000 | M29: 10000 | N29: 10000 | O29: 10000 | P29: 10000 | Q29: 10000 | R29: 10000
A30: Plaza of Honour (J. Durrell Order of Ottawa) | Q30: 62.15
A31: Police Association Scholarship Fund | E31: 6000 | F31: 6000 | G31: 6000 | H31: 6000 | I31: 6000 | K31: 6000 | L31: 6000 | M31: 7000 | N31: 7000 | O31: 7000 | P31: 7000 | Q31: 7000 | R31: 7000
A32: Royal Ottawa Inspiration Awards | M32: 1375 | N32: 1550 | O32: 1550 | P32: 1550 | R32: 1550
A33: Salvation Army Leadership Breakfast | P33: 250
A34: Shepherds of Good Hope Foundation | P34: 130
A35: St. Joe's Centre for Women | I35: 600
A36: The David Smith Centre Fundraiser | C36: 160 | D36: 105 | G36: 250
A37: Thomas G. Flanagan Scholarship Luncheon | N37: 250 | Q37: 500 | R37: 500
A38: Torch Run for Special Olympics | B38: 2000 | C38: 1000 | D38: 1000 | E38: 1000 | F38: 1000
A39: United Way (Community Builder) | K39: 1200 | P39: 300
A40: United Way (Raising the Roof) | M40: 1000
A41: The Vision Awards | O41: 866.25
A42: Wabano Centre for Aboriginal Health | K42: 250 | M42: 500 | Q42: 675
A43: World Police and Fire Games | D43: 1000
A44: Youth Services Bureau of Ottawa | F44: 2500 | M44: 1000 | O44: 1000
A45: Youth Treatment Centre Project s.t.e.p. | N45: =1125+1500 -> 2625 | O45: =1125+750 -> 1875
A46: Vanier Farewell Breakfast to Chief White for B&G Club | Q46: 500
A47: Victims of Crime (D/C O'Sullivan Retirement Party) | O47: 1000
A48: Total | B48: =SUM(B3:B44) -> 19500 | C48: 8080 | D48: 17525 | E48: 21200 | F48: 22000 | G48: 23750 | H48: 22600 | I48: 19500 | J48: 29750 | K48: 22650 | L48: 25595 | M48: 25375 | N48: =SUM(N3:N45) -> 27930 | O48: =SUM(O3:O47) -> 28453.15 | P48: =SUM(P3:P47) -> 26490 | Q48: =SUM(Q3:Q47) -> 29862.15 | R48: =SUM(R3:R47) -> 25550
A49: Budget | G49: =G48+G50 -> 18000 | H49: 28000 | I49: 25000 | J49: 25000 | K49: 25000 | L49: =22000+3000 -> 25000 | M49: =22000+3000 -> 25000 | N49: 30000 | O49: 30000 | P49: 30000 | Q49: 30000 | R49: 30000
A50: (+/-) | G50: -5750 | H50: =H49-H48 -> 5400 | I50: 5500 | J50: -4750 | K50: 2350 | L50: -595 | M50: -375 | N50: 2070 | O50: 1546.85 | P50: 3510 | Q50: =Q49-Q48 -> 137.85 | R50: =R49-R48 -> 4450
P53: . | Q53: ...................................................

Sheet Sheet2

Sheet Sheet3
